bitfinex/quotes_ETHUSD_20241024
["timestamp","ask_amount","ask_price","bid_price","bid_amount"]
[1729793291419,3.9593,2525.7,2525.1,4.73963]
[1729793291420,3.95947,2525.6,2525.4,1.62685207]
[1729793292256,3.95947,2525.6,2525.1,4.73971]
[1729793293165,8.74322,2525.7,2525.2,3.95999]
[1729793293768,0.8245,2525.7,2525.3,3.95988]
[1729793294142,4.7835,2525.9,2525.5,3.9595]
[1729793294676,0.06052346,2525.8,2525.5,3.9595]
[1729793295081,0.06052346,2525.8,2525.5,3.95946]
[1729793298668,0.06052346,2525.8,2525.4,3.95976]
[1729793298877,0.06052346,2525.8,2525.5,3.95959]
[1729793299778,4.01967346,2525.8,2525.3,3.95981]
[1729793300872,3.95946,2525.6,2525.2,0.55]
[1729793301078,4.78418,2525.5,2525.0,3.96027]
[1729793301237,4.8448486,2525.5,2525.0,3.96027]
[1729793301955,3.95986,2525.4,2524.9,4.74003]
[1729793302164,4.02050843,2525.4,2524.9,4.74003]
[1729793302368,0.06064843,2525.4,2525.1,3.96015]
[1729793303686,0.06064843,2525.4,2525.0,4.51029]
[1729793304210,0.06064843,2525.4,2525.1,3.96022]
[1729793306680,4.02043843,2525.4,2524.9,3.96047]
[1729793306847,3.96002,2525.3,2524.9,0.55]
[1729793307269,0.06038063,2525.2,2524.9,0.55]
[1729793307470,3.96002,2525.3,2524.9,0.55]
[1729793307676,3.96002,2525.3,2524.9,4.51049]
[1729793307993,0.06027793,2525.2,2524.9,0.55]
[1729793308140,0.06027793,2525.2,2524.9,4.51052]
[1729793308342,0.06027793,2525.2,2525.0,3.96037]
[1729793308778,3.95979,2525.4,2525.0,3.96037]
[1729793308779,0.0601807,2525.1,2525.0,3.96037]
[1729793309137,3.95979,2525.4,2525.0,3.96037]
[1729793309378,0.06015133,2525.1,2525.0,3.96037]
[1729793309575,3.95979,2525.4,2525.0,3.96037]
[1729793309811,0.06015133,2525.1,2525.0,3.96037]
[1729793310316,3.95979,2525.4,2525.0,3.96037]
[1729793310506,0.06015133,2525.1,2525.0,3.96037]
[1729793310710,3.95979,2525.4,2525.0,3.96037]
[1729793311018,3.95979,2525.4,2524.9,4.51047]
[1729793311019,0.06015133,2525.1,2524.9,4.51047]
[1729793311215,3.95977,2525.4,2524.9,4.51047]
[1729793311400,0.0600541,2525.0,2524.9,4.51047]
[1729793311602,4.438199,2525.4,2524.9,8.47093]
[1729793311784,0.0600541,2525.0,2524.9,8.47093]
[1729793312330,3.95977,2525.4,2524.9,10.09798348]
[1729793312491,3.95977,2525.4,2525.0,1.62705348]
[1729793312827,4.60090235,2525.4,2525.0,1.62705348]
[1729793314294,0.06034578,2525.3,2525.0,1.62705348]
[1729793315529,0.06034578,2525.3,2525.0,5.58735348]
[1729793315682,0.06034578,2525.3,2525.0,1.62705348]
[1729793316025,0.06034578,2525.3,2525.2,5.58713348]
[1729793316387,0.7743,2525.6,2525.2,5.58713348]
[1729793316588,0.06029442,2525.3,2525.2,5.58713348]
[1729793316837,0.7743,2525.6,2525.2,3.96008]
[1729793317124,0.06048883,2525.5,2525.2,5.58713348]
[1729793317905,0.06048883,2525.5,2525.1,6.41925348]
[1729793318101,0.06048883,2525.5,2525.1,10.37941348]
[1729793318309,0.06048883,2525.5,2525.1,10.37937348]
[1729793318835,0.06048883,2525.5,2525.2,3.96007]
[1729793319209,0.06048883,2525.5,2525.2,5.58712348]
[1729793319794,0.06048883,2525.5,2525.2,3.96007]
[1729793320112,0.06048883,2525.5,2525.2,5.58712348]
[1729793320286,0.06048883,2525.5,2525.2,3.96007]
[1729793322343,2.44775348,2525.4,2524.7,3.8208]
[1729793322498,4.75913,2525.1,2524.7,3.96084]
[1729793322840,0.06007613,2525.0,2524.7,1.62705348]
[1729793323203,0.06007613,2525.0,2524.7,5.58790348]
[1729793323521,0.06007613,2525.0,2524.8,1.62705348]
[1729793323713,0.06007613,2525.0,2524.7,1.62705348]
[1729793324238,0.06007613,2525.0,2524.8,1.62705348]
[1729793325735,0.06007613,2525.0,2524.7,5.58791348]
[1729793325936,0.06007613,2525.0,2524.8,1.62705348]
[1729793326121,0.06007613,2525.0,2524.7,5.58791348]
[1729793326436,4.02055613,2525.0,2524.7,1.62705348]
[1729793326648,4.02055613,2525.0,2524.8,1.62705348]
[1729793327010,4.02055613,2525.0,2524.7,1.62705348]
[1729793328120,4.02055613,2525.0,2524.8,1.62705348]
[1729793328304,0.06007613,2525.0,2524.7,5.58791348]
[1729793328508,0.06007613,2525.0,2524.8,1.62705348]
[1729793328808,4.02047613,2525.0,2524.8,1.62705348]
[1729793329006,0.06007613,2525.0,2524.8,1.62705348]
[1729793329405,4.50244874,2525.0,2524.7,1.62705348]
[1729793329646,3.96055,2524.9,2524.7,1.62705348]
[1729793329819,0.06007613,2525.0,2524.6,5.58799348]
[1729793330024,0.05578646,2524.8,2524.7,1.62705348]
[1729793330206,4.75905,2525.1,2524.7,5.58784348]
[1729793330409,0.0555993,2524.8,2524.7,3.96079]
[1729793330604,4.75905,2525.1,2524.7,5.58784348]
[1729793330805,0.0555993,2524.8,2524.6,7.922]
[1729793331043,0.7988,2525.1,2524.7,1.62705348]
[1729793331220,4.75904,2525.1,2524.8,1.62705348]
[1729793331821,0.05382915,2525.0,2524.8,1.62705348]
[1729793332032,0.05382915,2525.0,2524.9,5.58760348]
[1729793332229,0.05382915,2525.0,2524.9,6.34770348]
[1729793332423,3.96009,2525.2,2524.8,4.91557035]
[1729793332638,0.05379981,2525.0,2524.8,3.96068]
[1729793332847,3.96002,2525.3,2524.8,3.96068]
[1729793333055,0.05370257,2524.9,2524.8,4.51068]
[1729793333270,7.92007,2525.3,2524.9,3.96047]
[1729793333568,3.96002,2525.3,2524.9,5.58752348]
[1729793333867,3.96002,2525.3,2524.9,3.96047]
[1729793333868,3.96001,2525.3,2524.9,3.96047]
[1729793334045,3.96001,2525.3,2524.9,5.58752348]
[1729793334046,7.92007,2525.3,2524.9,5.58752348]
[1729793334562,3.96001,2525.3,2524.9,5.58752348]
[1729793335480,4.01410729,2525.2,2524.9,1.62705348]
[1729793335704,4.01410729,2525.2,2524.8,6.13773348]
[1729793335983,4.01410729,2525.2,2524.9,1.62705348]
[1729793336863,0.05402729,2525.2,2524.9,5.58752348]
[1729793337243,3.96006,2525.3,2524.9,5.58752348]
[1729793337782,0.05402729,2525.2,2524.9,5.58752348]
[1729793338077,3.96006,2525.3,2524.9,5.58752348]
[1729793338547,0.05402729,2525.2,2525.0,5.58742348]
[1729793338743,0.05402729,2525.2,2525.0,1.62705348]
[1729793339073,3.95993,2525.3,2525.0,1.62705348]
[1729793339280,0.05393007,2525.1,2524.9,1.62705348]
[1729793339584,0.05383283,2525.0,2524.9,1.62705348]
[1729793339877,0.05383283,2525.0,2524.9,5.58760348]
[1729793340045,3.9601,2525.2,2524.9,1.62705348]
[1729793340248,0.05383283,2525.0,2524.9,1.62705348]
[1729793340738,3.9601,2525.2,2524.9,1.62705348]
[1729793341081,0.05383283,2525.0,2524.9,4.51055]
[1729793341275,4.75704,2525.4,2525.0,3.96032]
[1729793341439,4.75704,2525.4,2525.0,5.58737348]
[1729793341639,4.75704,2525.4,2525.1,1.62705348]
[1729793341844,4.75704,2525.4,2525.0,5.58737348]
[1729793342080,4.75704,2525.4,2525.1,1.62705348]
[1729793342283,4.75704,2525.4,2525.0,5.58737348]
[1729793342643,0.05392336,2525.3,2525.0,5.58737348]
[1729793346292,3.96008,2525.2,2524.9,5.58759348]
[1729793346583,0.05376926,2525.1,2524.9,5.58759348]
[1729793347475,2.45655348,2525.0,2524.7,0.82437627]
[1729793347785,4.7902,2524.8,2524.7,0.82437627]
[1729793348092,4.01415578,2524.9,2524.7,0.82437627]
[1729793348254,0.05343715,2524.8,2524.7,0.82437627]
[1729793349782,4.01413715,2524.8,2524.7,0.82437627]
[1729793350693,4.01413715,2524.8,2524.7,0.82437627]
[1729793350890,0.05343715,2524.8,2524.7,0.82437627]
[1729793351250,0.05343715,2524.8,2524.7,2.45142975]
[1729793351449,0.05343715,2524.8,2524.7,0.82437627]
[1729793352173,4.01413715,2524.8,2524.7,0.82437627]
[1729793352364,0.05343715,2524.8,2524.7,0.82437627]
[1729793355082,3.96064,2524.9,2524.7,0.82437627]
[1729793355287,0.05330135,2524.8,2524.7,0.82437627]
[1729793356757,4.01400135,2524.8,2524.7,0.82437627]
[1729793356985,0.05330135,2524.8,2524.7,0.82437627]
[1729793357564,4.01400135,2524.8,2524.5,1.62705348]
[1729793358512,0.8045,2524.3,2524.1,0.82448583]
[1729793358683,4.76646,2524.0,2523.9,0.1496]
[1729793359029,6.44419323,2524.0,2523.9,0.1496]
[1729793360283,8.12725171,2524.0,2523.9,0.1496]
[1729793361283,4.81713975,2524.0,2523.9,0.1496]
[1729793362978,0.85517975,2524.0,2523.9,0.1496]
[1729793363218,4.01263975,2524.0,2523.9,0.1496]
[1729793364010,0.05067975,2524.0,2523.9,0.1496]
[1729793366237,4.01263975,2524.0,2523.9,0.1496]
[1729793367322,0.05067975,2524.0,2523.9,0.9734]
[1729793367528,3.96166,2524.2,2523.9,0.9734]
[1729793367826,0.04825145,2524.0,2523.9,0.9734]
[1729793368037,3.96166,2524.2,2523.9,0.9734]
[1729793368192,0.04825145,2524.0,2523.9,0.9734]
[1729793368827,3.96165,2524.2,2523.9,0.9734]
[1729793369128,4.75487,2524.1,2523.9,0.1496]
[1729793369293,0.04825145,2524.0,2523.9,0.1496]
[1729793369497,4.01021145,2524.0,2523.9,0.1496]
[1729793370209,0.04825145,2524.0,2523.9,0.1496]
[1729793370927,0.04829185,2524.0,2523.9,0.1496]
[1729793371093,3.96172,2524.2,2523.9,0.1496]
[1729793371517,0.04838917,2524.1,2523.9,0.1496]
[1729793371933,4.01020917,2524.1,2523.9,0.1496]
[1729793374837,7.97213917,2524.1,2523.9,0.1496]
[1729793375343,4.01020917,2524.1,2523.9,0.1496]
[1729793379419,0.04838917,2524.1,2523.9,0.1496]
[1729793380236,0.04838917,2524.1,2523.9,4.11162]
[1729793380438,3.96133,2524.4,2524.0,0.794]
[1729793380822,3.96155,2524.3,2524.0,0.794]
[1729793381211,0.04862608,2524.2,2524.0,0.794]
[1729793381422,3.96155,2524.3,2524.0,0.794]
[1729793381649,0.04852877,2524.1,2524.0,0.794]
[1729793381945,0.0472621,2524.1,2524.0,0.794]
[1729793382111,3.96155,2524.3,2524.0,0.794]
[1729793382447,0.04698027,2524.2,2524.0,0.794]
[1729793382657,3.96155,2524.3,2524.0,0.794]
[1729793382947,0.04688296,2524.1,2524.0,0.794]
[1729793383439,3.96155,2524.3,2524.0,0.794]
[1729793383750,0.04688296,2524.1,2524.0,0.794]
[1729793383945,3.96155,2524.3,2524.0,0.794]
[1729793384149,0.0469215,2524.2,2524.0,0.794]
[1729793384326,3.96155,2524.3,2524.0,0.794]
[1729793384525,0.0469215,2524.2,2524.0,0.794]
[1729793384847,3.96155,2524.3,2524.0,0.794]
[1729793385052,0.04682419,2524.1,2524.0,0.794]
[1729793385214,3.96155,2524.3,2524.0,0.794]
[1729793385412,0.04682419,2524.1,2524.0,0.794]
[1729793385616,3.96155,2524.3,2524.0,0.794]
[1729793386137,0.0469215,2524.2,2524.0,0.794]
[1729793386340,3.96155,2524.3,2524.0,0.794]
[1729793386843,0.0469215,2524.2,2524.0,0.794]
[1729793387060,3.96155,2524.3,2524.0,0.794]
[1729793387224,0.04682419,2524.1,2524.0,0.794]
[1729793387549,3.96155,2524.3,2524.0,0.794]
[1729793387723,0.04682419,2524.1,2524.0,0.794]
[1729793387926,3.96155,2524.3,2524.0,0.794]
[1729793388329,0.0469215,2524.2,2524.0,0.794]
[1729793388536,3.96155,2524.3,2524.0,0.794]
[1729793388715,0.0469215,2524.2,2524.0,0.794]
[1729793388921,3.96155,2524.3,2524.0,0.794]
[1729793389232,3.96086,2524.7,2524.2,5.59010288]
[1729793389831,3.96102,2524.6,2524.2,5.59010288]
[1729793390033,3.96102,2524.6,2524.2,3.96158]
[1729793392165,7.92214,2524.6,2524.2,3.96158]
[1729793392324,0.04560541,2524.5,2524.2,3.96158]
[1729793392720,0.04560541,2524.5,2523.9,0.1496]
[1729793392721,3.96196,2524.0,2523.9,0.1496]
[1729793393120,4.00707889,2524.0,2523.9,0.1496]
[1729793396279,4.77157889,2524.0,2523.9,0.1496]
[1729793397754,4.00707889,2524.0,2523.9,0.1496]
[1729793402586,0.04511889,2524.0,2523.9,4.92862]
[1729793402757,0.7723,2524.5,2523.9,6.30205824]
[1729793402962,0.04545302,2524.4,2524.0,3.96194]
[1729793403183,4.00682302,2524.4,2524.0,3.96194]
[1729793403392,4.00682302,2524.4,2523.9,6.30205824]
[1729793404094,4.00682302,2524.4,2523.9,5.47849]
[1729793404299,4.00682302,2524.4,2523.9,9.44053]
[1729793404597,4.00682302,2524.4,2524.0,3.96195]
[1729793404892,4.00685302,2524.4,2524.0,3.96195]
[1729793408000,3.96173,2524.2,2523.9,0.1496]
[1729793408209,3.9618,2524.2,2523.9,0.1496]
[1729793408495,0.04338776,2524.1,2523.9,0.1496]
[1729793409795,0.04338776,2524.1,2523.9,4.11169]
[1729793409964,3.96141,2524.4,2523.9,4.92389]
[1729793410306,0.04362009,2524.3,2524.2,5.32385]
[1729793410458,0.04362009,2524.3,2524.2,10.1697536]
[1729793410818,4.7485,2525.0,2524.6,3.96099]
[1729793411024,0.7881,2525.0,2524.6,9.54928492]
[1729793411308,0.7881,2525.0,2524.6,6.40049492]
[1729793411309,0.04156672,2524.9,2524.6,6.40049492]
[1729793411808,0.04156672,2524.9,2524.6,4.77313]
[1729793412015,0.04156672,2524.9,2524.6,6.40049492]
[1729793414078,0.04156672,2524.9,2524.6,2.43956492]
[1729793414281,4.87715639,2524.9,2524.4,3.9612]
[1729793414513,3.96079,2524.8,2524.4,3.9612]
[1729793414819,0.03995239,2524.7,2524.4,3.9612]
[1729793415017,3.96055,2524.9,2524.4,7.92242]
[1729793415177,0.03986453,2524.6,2524.4,7.92242]
[1729793415377,3.96055,2524.9,2524.4,3.9612]
[1729793415621,0.04005907,2524.8,2524.5,3.96116]
[1729793415794,0.04005907,2524.8,2524.4,3.9612]
[1729793416001,0.04005907,2524.8,2524.4,7.92247]
[1729793416196,0.04005907,2524.8,2524.4,3.9612]
[1729793416519,0.04005907,2524.8,2524.5,3.96116]
[1729793416719,4.00076907,2524.8,2524.4,3.9612]
[1729793417097,4.00076907,2524.8,2524.3,7.74237]
[1729793417887,0.04005907,2524.8,2524.5,3.96117]
[1729793418694,0.04005907,2524.8,2524.5,7.92225]
[1729793419209,3.96066,2524.9,2524.5,3.96108]
[1729793419404,0.0399618,2524.7,2524.5,3.96108]
[1729793419744,3.96066,2524.9,2524.5,3.96108]
[1729793420034,4.435536,2524.9,2524.5,3.96108]
[1729793420229,0.04005907,2524.8,2524.5,3.96108]
[1729793420389,0.04005907,2524.8,2524.4,3.96132]
[1729793420828,4.00076907,2524.8,2524.4,3.96132]
[1729793421316,0.04005907,2524.8,2524.7,0.1496]
[1729793422519,4.52711958,2524.8,2524.7,0.1496]
[1729793422706,5.30121958,2524.8,2524.7,0.1496]
[1729793423930,1.34051958,2524.8,2524.7,0.1496]
[1729793424237,0.56641958,2524.8,2524.7,0.1496]
[1729793428249,4.52711958,2524.8,2524.7,0.1496]
[1729793430153,0.56641958,2524.8,2524.7,0.1496]
[1729793430450,4.52711958,2524.8,2524.7,0.1496]
[1729793432142,4.56675053,2524.8,2524.7,0.1496]
[1729793432349,0.60605053,2524.8,2524.7,0.1496]
[1729793434074,4.56675053,2524.8,2524.7,0.1496]
[1729793437382,6.19452058,2524.8,2524.7,0.1496]
[1729793437674,7.02772058,2524.8,2524.7,0.1496]
[1729793438581,11.65549063,2524.8,2524.7,0.1496]
[1729793438766,10.02772058,2524.8,2524.7,0.1496]
[1729793439260,11.65549063,2524.8,2524.7,0.1496]
[1729793439603,3.96212,2523.9,2523.4,4.76009]
[1729793439873,0.07811109,2523.8,2523.7,1.62777005]
[1729793440038,3.96197,2524.0,2523.7,1.62777005]
[1729793440239,0.07799706,2523.8,2523.7,1.62777005]
[1729793440471,3.96197,2524.0,2523.6,1.62777005]
[1729793440679,0.07799706,2523.8,2523.7,1.62777005]
[1729793440918,3.96197,2524.0,2523.7,1.62777005]
[1729793441195,0.07799706,2523.8,2523.7,1.62777005]
[1729793441399,7.92382,2524.1,2523.7,1.62777005]
[1729793441599,0.07799706,2523.8,2523.7,1.62777005]
[1729793442095,3.96206,2524.0,2523.7,1.62777005]
[1729793442308,0.07799706,2523.8,2523.7,1.62777005]
[1729793442592,3.96213,2523.9,2523.7,1.62777005]
[1729793442894,0.07799706,2523.8,2523.7,1.62777005]
[1729793443196,3.96197,2524.0,2523.7,1.62777005]
[1729793443359,0.07799706,2523.8,2523.7,1.62777005]
[1729793443559,3.96213,2523.9,2523.6,1.62777005]
[1729793443892,0.07799706,2523.8,2523.6,1.62777005]
[1729793444393,3.96211,2524.0,2523.7,1.62777005]
[1729793444919,3.96211,2524.0,2523.6,1.62777005]
[1729793445563,3.96211,2524.0,2523.7,1.62777005]
[1729793445898,3.96211,2524.0,2523.6,1.62777005]
[1729793447100,3.96211,2524.0,2523.7,1.62777005]
[1729793448708,3.96211,2524.0,2523.6,5.59027005]
[1729793449115,3.96211,2524.0,2523.7,1.62777005]
[1729793449288,3.96211,2524.0,2523.8,1.62777005]
[1729793449491,3.96183,2524.1,2523.8,1.62777005]
[1729793451219,3.96183,2524.1,2523.7,5.59019005]
[1729793451712,3.96183,2524.1,2523.7,1.62777005]
[1729793451915,3.96196,2524.0,2523.7,1.62777005]
[1729793452723,3.96196,2524.0,2523.6,5.59027005]
[1729793452878,3.96196,2524.0,2523.6,1.62777005]
[1729793453982,3.96196,2524.0,2523.6,5.59029005]
[1729793454525,3.96196,2524.0,2523.7,1.62777005]
[1729793457132,3.96184,2524.1,2523.7,5.59020005]
[1729793457347,4.73335,2524.4,2523.9,1.62777005]
[1729793457490,3.96126,2524.5,2524.1,6.35141005]
[1729793457832,4.73271,2524.8,2524.4,1.62777005]
[1729793457988,8.69352,2524.8,2524.4,1.62777005]
[1729793458183,8.69352,2524.8,2524.3,3.9614]
[1729793458632,3.9609,2524.7,2524.3,3.9614]
[1729793458839,4.73271,2524.8,2524.4,5.58909005]
[1729793459034,3.96089,2524.7,2524.2,3.96165]
[1729793459234,4.73271,2524.8,2524.3,6.45768505]
[1729793459535,3.96091,2524.7,2524.3,6.45768505]
[1729793460253,3.96091,2524.7,2524.3,1.62777005]
[1729793460434,3.96106,2524.6,2524.2,5.58939005]
[1729793460641,3.96106,2524.6,2524.3,1.62777005]
[1729793460843,3.96088,2524.7,2524.3,5.58925005]
[1729793461146,3.96088,2524.7,2524.4,1.62777005]
[1729793461341,0.07606824,2524.6,2524.5,0.8275]
[1729793462158,4.03708824,2524.6,2524.3,2.46077005]
[1729793462325,0.07606824,2524.6,2524.3,2.46077005]
[1729793462653,3.96088,2524.7,2524.3,6.42224005]
[1729793462855,0.07606012,2524.5,2524.3,6.42224005]
[1729793463165,0.07596445,2524.4,2524.3,6.42224005]
[1729793463518,3.96088,2524.7,2524.3,6.42224005]
[1729793463713,0.07615578,2524.6,2524.3,6.42224005]
[1729793463921,0.07615578,2524.6,2524.3,10.38371005]
[1729793464159,4.73263,2524.8,2524.4,3.96133]
[1729793464362,0.07606012,2524.5,2524.4,5.58910005]
[1729793464527,3.96065,2524.9,2524.3,6.42224005]
[1729793464528,1.62777005,2524.9,2524.3,6.42224005]
[1729793464721,3.9609,2524.7,2524.3,6.42224005]
[1729793464924,0.07615578,2524.6,2524.5,1.62777005]
[1729793465259,0.07545245,2524.6,2524.4,5.58902005]
[1729793465416,0.07545245,2524.6,2524.4,3.96125]
[1729793465618,7.92168,2524.8,2524.3,4.7944]
[1729793465853,0.07535678,2524.5,2524.4,3.96133]
[1729793466055,3.96082,2524.8,2524.4,3.96133]
[1729793466368,3.96082,2524.8,2524.3,6.42219005]
[1729793466656,0.0755481,2524.7,2524.3,6.42219005]
[1729793467028,0.07545245,2524.6,2524.3,6.42219005]
[1729793467439,7.92162,2524.8,2524.3,6.42219005]
[1729793467641,8.956319,2524.8,2524.3,6.42219005]
[1729793467841,0.0755481,2524.7,2524.3,6.42219005]
[1729793468161,4.995499,2524.8,2524.3,6.42219005]
[1729793468463,0.07545245,2524.6,2524.5,5.58895005]
[1729793468820,6.38588005,2525.0,2524.6,3.96102]
[1729793469051,3.9603,2525.1,2524.7,6.39355005]
[1729793469264,3.9603,2525.1,2524.7,0.805]
[1729793469265,0.07601522,2524.9,2524.7,0.805]
[1729793469462,5.58807005,2525.1,2524.7,0.805]
[1729793469661,0.07337087,2524.8,2524.7,0.805]
[1729793469871,5.58807005,2525.1,2524.7,0.805]
[1729793470164,6.62578306,2525.1,2524.7,0.805]
[1729793470367,0.07356215,2525.0,2524.7,2.43277005]
[1729793470566,0.07356215,2525.0,2524.8,3.96055]
[1729793470768,5.58780005,2525.3,2524.9,3.96055]
[1729793471001,3.96003,2525.3,2524.9,3.96055]
[1729793471348,5.58780005,2525.3,2524.9,3.96055]
[1729793471882,3.95948,2525.6,2525.1,5.58799005]
[1729793472042,5.58722005,2525.6,2525.1,7.92034]
[1729793472234,5.58722005,2525.6,2525.1,3.96017]
[1729793472436,0.07428286,2525.5,2525.1,3.96016]
[1729793472853,0.07428286,2525.5,2525.1,5.58793005]
[1729793473238,0.07428286,2525.5,2525.2,1.62777005]
[1729793473469,0.07428286,2525.5,2525.1,5.58793005]
[1729793473832,0.07428286,2525.5,2525.2,5.58784005]
[1729793474368,8.67818,2525.7,2525.2,5.58784005]
[1729793474556,0.0742718,2525.4,2525.2,3.96007]
[1729793474800,3.95939,2525.7,2525.2,9.54783005]
[1729793475118,1.62777005,2525.8,2525.2,9.54783005]
[1729793475119,3.95927,2525.8,2525.3,6.37602005]
[1729793475419,5.58704005,2525.8,2525.3,4.74825]
[1729793475912,0.07455857,2525.7,2525.3,4.74825]
[1729793476217,5.58704005,2525.8,2525.3,4.74825]
[1729793476417,0.07446299,2525.6,2525.3,4.74825]
[1729793476572,3.95947,2525.6,2525.3,0.7884]
[1729793476777,0.0743674,2525.5,2525.3,0.7884]
[1729793477391,5.58707005,2525.7,2525.3,0.7884]
[1729793477727,6.72586026,2525.7,2525.3,0.7884]
[1729793478014,0.07476184,2525.6,2525.3,0.7884]
[1729793480882,4.03422184,2525.6,2525.3,0.7884]
[1729793481211,3.95977,2525.4,2525.0,4.75171]
[1729793481580,0.07494421,2525.3,2525.0,4.75171]
[1729793481775,0.07494421,2525.3,2525.0,6.37948005]
[1729793482303,0.07494421,2525.3,2525.0,0.7914]
[1729793482499,0.95355363,2525.3,2525.0,0.7914]
[1729793482820,4.91348363,2525.3,2525.0,0.7914]
[1729793483343,0.95355363,2525.3,2525.0,0.7914]
[1729793483695,0.95355363,2525.3,2525.0,4.75178]
[1729793483901,0.07494421,2525.3,2525.0,4.75178]
[1729793484136,0.07494421,2525.3,2525.0,0.7914]
[1729793484929,3.96014,2525.2,2524.5,7.92236]
[1729793485240,3.96014,2525.2,2524.7,3.96086]
[1729793485241,0.87867001,2525.1,2524.7,3.96086]
[1729793485424,2.50644006,2525.1,2524.7,3.96086]
[1729793485614,0.87867001,2525.1,2524.7,7.92172]
[1729793485810,0.87867001,2525.1,2524.7,3.96086]
[1729793486033,4.83892001,2525.1,2524.7,3.96086]
[1729793486898,4.83892001,2525.1,2524.6,1.62777005]
[1729793487137,4.83892001,2525.1,2524.6,5.58872005]
[1729793487347,3.96041,2525.0,2524.6,3.96095]
[1729793487703,6.46669006,2525.1,2524.7,3.96084]
[1729793488541,3.9604,2525.0,2524.6,3.96095]
[1729793488745,0.07437393,2524.9,2524.6,3.96095]
[1729793489639,0.07437393,2524.9,2524.6,7.92185]
[1729793490090,6.39182005,2525.1,2524.7,3.96085]
[1729793490388,3.46676505,2525.1,2524.6,3.9609]
[1729793490551,0.07442339,2525.0,2524.7,1.62777005]
[1729793490752,0.07442339,2525.0,2524.7,3.96085]
[1729793491753,0.07442339,2525.0,2524.6,4.511]
[1729793491953,0.07442339,2525.0,2524.6,0.55]
[1729793492183,0.07442339,2525.0,2524.7,3.96086]
[1729793493094,4.03487339,2525.0,2524.6,3.96099]
[1729793494399,4.03487339,2525.0,2524.5,6.40341005]
[1729793494400,3.96055,2524.9,2524.5,6.40353005]
[1729793494780,0.07420687,2524.8,2524.5,4.77576]
[1729793495499,0.07420687,2524.8,2524.4,3.96121]
[1729793495701,0.89150687,2524.8,2524.4,3.96121]
[1729793496066,4.85221687,2524.8,2524.4,3.96121]
[1729793496585,4.85221687,2524.8,2524.3,10.30925005]
[1729793496787,5.89627656,2524.8,2524.3,6.34778005]
[1729793497001,1.93556656,2524.8,2524.4,5.58901005]
[1729793497498,0.89150687,2524.8,2524.4,5.58901005]
[1729793497700,4.85224687,2524.8,2524.4,5.58901005]
[1729793498067,0.89150687,2524.8,2524.4,5.58901005]
[1729793498904,0.89150687,2524.8,2524.5,5.58890005]
[1729793500180,0.07420687,2524.8,2524.7,1.62777005]
[1729793500509,0.8137,2525.0,2524.7,5.58853005]
[1729793500711,0.07406924,2524.8,2524.7,3.96076]
[1729793500916,0.8137,2525.0,2524.7,3.96076]
[1729793501403,0.07416486,2524.9,2524.7,3.96076]
[1729793501607,0.07416486,2524.9,2524.6,5.58872005]
[1729793501902,0.07416486,2524.9,2524.6,3.96095]
[1729793503976,0.07416486,2524.9,2524.6,3.96094]
[1729793505306,0.07416486,2524.9,2524.5,1.62777005]
[1729793505519,0.07416486,2524.9,2524.6,3.96098]
[1729793506006,0.07416486,2524.9,2524.7,3.96076]
[1729793507810,0.07416486,2524.9,2524.7,7.92156]
[1729793508113,0.07416486,2524.9,2524.8,3.9607]
[1729793508312,3.95981,2525.4,2524.8,3.9607]
[1729793508313,0.8288,2525.3,2525.0,3.96029]
[1729793509109,0.8288,2525.3,2525.1,3.96021]
[1729793509417,0.06919687,2525.2,2525.1,3.96021]
[1729793509917,0.8288,2525.3,2525.1,3.96021]
[1729793510122,0.06919687,2525.2,2525.1,3.96021]
[1729793510482,0.06919687,2525.2,2524.9,0.7888]
[1729793510684,0.8288,2525.3,2525.0,3.96036]
[1729793510888,0.06919687,2525.2,2525.0,3.96036]
[1729793511097,0.8288,2525.3,2525.0,3.96036]
[1729793511416,0.06919687,2525.2,2525.0,3.96036]
[1729793511921,0.8288,2525.3,2525.0,3.96036]
[1729793512379,0.06919687,2525.2,2525.0,3.96036]
[1729793512715,0.8288,2525.3,2525.0,3.96036]
[1729793512917,0.06910126,2525.1,2525.0,3.96036]
[1729793513447,0.8288,2525.3,2525.0,3.96036]
[1729793513587,0.06910126,2525.1,2525.0,3.96036]
[1729793513922,0.8288,2525.3,2525.0,3.96036]
[1729793514080,0.06910126,2525.1,2525.0,3.96036]
[1729793514286,0.06910126,2525.1,2524.9,4.74933]
[1729793514517,6.41651005,2525.3,2524.9,4.74933]
[1729793514720,0.0679002,2525.2,2524.9,4.74933]
[1729793515031,7.45413706,2525.3,2524.9,4.74933]
[1729793515189,0.06780459,2525.1,2524.9,4.74933]
[1729793515383,6.41651005,2525.3,2524.9,4.74933]
[1729793515581,0.06649579,2525.0,2524.9,5.29933]
[1729793515908,4.78874,2525.3,2524.9,5.29933]
[1729793516117,6.41651005,2525.3,2524.9,5.29933]
[1729793516311,0.06668702,2525.2,2524.9,5.29933]
[1729793516493,6.41651005,2525.3,2524.9,5.29933]
[1729793516818,0.06668702,2525.2,2524.9,5.29933]
[1729793517211,6.41651005,2525.3,2524.9,5.29933]
[1729793517409,0.06659141,2525.1,2524.9,5.29933]
[1729793517595,6.41651005,2525.3,2524.9,5.29933]
[1729793517801,0.06649579,2525.0,2524.9,5.29933]
[1729793518030,5.58801005,2525.1,2524.7,3.96077]
[1729793518197,0.06649579,2525.0,2524.7,3.96077]
[1729793519111,0.06649579,2525.0,2524.7,7.92156]
[1729793519315,0.06649579,2525.0,2524.7,3.96077]
[1729793523747,0.06649579,2525.0,2524.7,7.92157]
[1729793524032,0.06649579,2525.0,2524.7,3.96077]
[1729793524330,3.96016,2525.2,2524.8,3.9607]
[1729793524538,7.92038,2525.2,2524.8,3.9607]
[1729793524841,0.06670564,2525.1,2524.8,3.9607]
[1729793525202,0.06670564,2525.1,2524.8,7.92134]
[1729793525402,0.06670564,2525.1,2524.8,3.96064]
[1729793526438,4.02694564,2525.1,2524.7,0.55]
[1729793526730,8.63566721,2525.1,2524.7,4.5108]
[1729793526934,4.67529721,2525.1,2524.7,4.5108]
[1729793527135,4.67529721,2525.1,2524.7,4.51077]
[1729793527389,4.67529721,2525.1,2524.7,8.47155]
[1729793528607,4.67529721,2525.1,2524.8,3.9607]